[Event "Early-Titled-Tuesday-Blitz-September-12-2023"]
[Site "Chess.com"]
[Date "2023.09.12"]
[Round "10"]
[White "splendidkid"]
[Black "sergoy"]
[Result "1/2-1/2"]
[WhiteElo "2786"]
[BlackElo "2928"]
[TimeControl "180+1"]
[EndTime "9:58:05 PDT"]
[Termination "Game drawn by repetition"]

1. d4 {[%clk 0:03:00.9]} 1... d5 {[%clk 0:02:58.9]} 2. c4 {[%clk 0:03:00]} 2...
c6 {[%clk 0:02:59.7]} 3. Nf3 {[%clk 0:03:00]} 3... Nf6 {[%clk 0:03:00.1]} 4.
Nbd2 {[%clk 0:03:00.2]} 4... e6 {[%clk 0:02:48.7]} 5. g3 {[%clk 0:02:59.6]} 5...
c5 {[%clk 0:02:49.2]} 6. dxc5 {[%clk 0:02:47.8]} 6... Bxc5 {[%clk 0:02:49]} 7.
Bg2 {[%clk 0:02:48.5]} 7... Nc6 {[%clk 0:02:44.1]} 8. O-O {[%clk 0:02:48.6]}
8... h6 {[%clk 0:02:36.2]} 9. a3 {[%clk 0:02:48.2]} 9... a5 {[%clk 0:02:33.4]}
10. b3 {[%clk 0:02:47.5]} 10... d4 {[%clk 0:02:30.9]} 11. Bb2 {[%clk 0:02:46.5]}
11... O-O {[%clk 0:02:29.7]} 12. Qc2 {[%clk 0:02:45.5]} 12... e5 {[%clk
0:02:30]} 13. Nh4 {[%clk 0:02:20.7]} 13... Be6 {[%clk 0:02:16.5]} 14. Rfd1
{[%clk 0:02:07.6]} 14... Rc8 {[%clk 0:02:16.3]} 15. Ne4 {[%clk 0:02:05.1]} 15...
Be7 {[%clk 0:02:15.4]} 16. Nf5 {[%clk 0:01:50.4]} 16... Kh8 {[%clk 0:01:50.6]}
17. Nxf6 {[%clk 0:01:45.2]} 17... Bxf6 {[%clk 0:01:49.9]} 18. Be4 {[%clk
0:01:22.8]} 18... Ne7 {[%clk 0:01:30.8]} 19. e3 {[%clk 0:01:01.1]} 19... a4
{[%clk 0:01:20.3]} 20. Nxe7 {[%clk 0:00:25.3]} 20... Qxe7 {[%clk 0:01:19.8]} 21.
exd4 {[%clk 0:00:25.6]} 21... axb3 {[%clk 0:01:18.6]} 22. Qxb3 {[%clk
0:00:26.5]} 22... Bxc4 {[%clk 0:01:16.7]} 23. Qe3 {[%clk 0:00:25.4]} 23... exd4
{[%clk 0:01:10.2]} 24. Bxd4 {[%clk 0:00:25.1]} 24... b5 {[%clk 0:01:09.3]} 25.
Bxf6 {[%clk 0:00:22.2]} 25... Qxf6 {[%clk 0:01:10.2]} 26. Bg2 {[%clk 0:00:21.9]}
26... Rfe8 {[%clk 0:01:07.8]} 27. Qf3 {[%clk 0:00:12.4]} 27... Qb6 {[%clk
0:01:03.8]} 28. Re1 {[%clk 0:00:09.6]} 28... Qa5 {[%clk 0:01:01.4]} 29. Re3
{[%clk 0:00:07.5]} 29... b4 {[%clk 0:00:50.4]} 30. Rxe8+ {[%clk 0:00:02.8]}
30... Rxe8 {[%clk 0:00:50.7]} 31. Qf4 {[%clk 0:00:02.9]} 31... Rc8 {[%clk
0:00:33.5]} 32. Qd2 {[%clk 0:00:02.7]} 32... Rb8 {[%clk 0:00:18.1]} 33. Rc1
{[%clk 0:00:03]} 33... Be6 {[%clk 0:00:08.6]} 34. axb4 {[%clk 0:00:03.3]} 34...
Qxb4 {[%clk 0:00:09.2]} 35. Qxb4 {[%clk 0:00:02.9]} 35... Rxb4 {[%clk
0:00:10.1]} 36. h4 {[%clk 0:00:03.5]} 36... g6 {[%clk 0:00:09.3]} 37. Bf3 {[%clk
0:00:03.7]} 37... Kg7 {[%clk 0:00:10]} 38. Kg2 {[%clk 0:00:04.4]} 38... Kf6
{[%clk 0:00:10.6]} 39. Rc6 {[%clk 0:00:04.3]} 39... Rb3 {[%clk 0:00:10.6]} 40.
Rc5 {[%clk 0:00:03.3]} 40... Rd3 {[%clk 0:00:07.3]} 41. Rc6 {[%clk 0:00:03.6]}
41... Kg7 {[%clk 0:00:05.5]} 42. Rb6 {[%clk 0:00:04]} 42... Rd4 {[%clk
0:00:05.8]} 43. Ra6 {[%clk 0:00:03.9]} 43... g5 {[%clk 0:00:06.4]} 44. hxg5
{[%clk 0:00:03.5]} 44... hxg5 {[%clk 0:00:07.3]} 45. Ra5 {[%clk 0:00:03.7]}
45... g4 {[%clk 0:00:07.1]} 46. Ba8 {[%clk 0:00:04.2]} 46... Kf6 {[%clk
0:00:07.6]} 47. Kf1 {[%clk 0:00:04.4]} 47... Rd1+ {[%clk 0:00:07.4]} 48. Kg2
{[%clk 0:00:04.9]} 48... Bc4 {[%clk 0:00:04.9]} 49. Ra4 {[%clk 0:00:03.9]} 49...
Be6 {[%clk 0:00:04]} 50. Kh2 {[%clk 0:00:03.6]} 50... Rd2 {[%clk 0:00:04.2]} 51.
Kg2 {[%clk 0:00:04]} 51... Kg5 {[%clk 0:00:04.8]} 52. Ra5+ {[%clk 0:00:04]}
52... f5 {[%clk 0:00:05]} 53. Ra6 {[%clk 0:00:04.4]} 53... Bc4 {[%clk 0:00:04]}
54. Ra4 {[%clk 0:00:03]} 54... Bd3 {[%clk 0:00:04.4]} 55. Ra3 {[%clk 0:00:02.8]}
55... Rd1 {[%clk 0:00:04.3]} 56. Bb7 {[%clk 0:00:02.6]} 56... Bf1+ {[%clk
0:00:03]} 57. Kh2 {[%clk 0:00:02.8]} 57... Rb1 {[%clk 0:00:03.9]} 58. Ba8 {[%clk
0:00:02.5]} 58... Be2 {[%clk 0:00:04]} 59. Kg2 {[%clk 0:00:02.1]} 59... Rb5
{[%clk 0:00:02.9]} 60. Re3 {[%clk 0:00:02.4]} 60... Bc4 {[%clk 0:00:03.1]} 61.
Bc6 {[%clk 0:00:02.6]} 61... Rc5 {[%clk 0:00:03.3]} 62. Ba8 {[%clk 0:00:03.1]}
62... f4 {[%clk 0:00:03.7]} 63. gxf4+ {[%clk 0:00:03]} 63... Kxf4 {[%clk
0:00:04.6]} 64. Rg3 {[%clk 0:00:03.5]} 64... Be6 {[%clk 0:00:04.5]} 65. Ra3
{[%clk 0:00:03.3]} 65... Rc2 {[%clk 0:00:04.3]} 66. Ra4+ {[%clk 0:00:03.6]}
66... Kg5 {[%clk 0:00:04.4]} 67. Ra6 {[%clk 0:00:04.2]} 67... Bc4 {[%clk
0:00:02.2]} 68. Ra5+ {[%clk 0:00:04.4]} 68... Kh4 {[%clk 0:00:02.6]} 69. Rf5
{[%clk 0:00:02.6]} 69... Rc1 {[%clk 0:00:02.5]} 70. Rf4 {[%clk 0:00:02.3]} 70...
Bf1+ {[%clk 0:00:02.8]} 71. Kh2 {[%clk 0:00:02.9]} 71... Bh3 {[%clk 0:00:03.5]}
72. Bg2 {[%clk 0:00:02.4]} 72... Bxg2 {[%clk 0:00:04]} 73. Kxg2 {[%clk
0:00:03.3]} 73... Rc2 {[%clk 0:00:04.8]} 74. Re4 {[%clk 0:00:03.7]} 74... Rd2
{[%clk 0:00:05.2]} 75. Re3 {[%clk 0:00:04.3]} 75... Rc2 {[%clk 0:00:05.4]} 76.
Re4 {[%clk 0:00:04.8]} 76... Rd2 {[%clk 0:00:05.9]} 77. Re3 {[%clk 0:00:05.4]}
77... Rd4 {[%clk 0:00:06.6]} 78. Ra3 {[%clk 0:00:05.4]} 78... Kg5 {[%clk
0:00:07.1]} 79. Rg3 {[%clk 0:00:05.9]} 79... Kh4 {[%clk 0:00:08]} 80. Re3 {[%clk
0:00:06]} 80... Ra4 {[%clk 0:00:08.1]} 81. Re8 {[%clk 0:00:06.7]} 81... Ra5
{[%clk 0:00:07.7]} 82. Rh8+ {[%clk 0:00:07.2]} 82... Rh5 {[%clk 0:00:08.1]} 83.
Rg8 {[%clk 0:00:08.1]} 83... Rg5 {[%clk 0:00:08.1]} 84. Rh8+ {[%clk 0:00:08.3]}
84... Rh5 {[%clk 0:00:08.7]} 85. Rg8 {[%clk 0:00:09]} 85... Rg5 {[%clk 0:00:09]}
86. Rf8 {[%clk 0:00:09.5]} 86... Rd5 {[%clk 0:00:08]} 87. Rh8+ {[%clk
0:00:09.7]} 87... Rh5 {[%clk 0:00:08.1]} 1/2-1/2

[Event "Early-Titled-Tuesday-Blitz-September-12-2023"]
[Site "Chess.com"]
[Date "2023.09.12"]
[Round "11"]
[White "Andrei_Belozerov"]
[Black "Leonid_Starozhilov"]
[Result "1/2-1/2"]
[WhiteElo "2618"]
[BlackElo "2775"]
[TimeControl "180+1"]
[EndTime "9:59:46 PDT"]
[Termination "Game drawn by agreement"]

1. d4 {[%clk 0:02:58.4]} 1... Nf6 {[%clk 0:03:00.1]} 2. c4 {[%clk 0:02:58.8]}
2... g6 {[%clk 0:03:00.4]} 3. g3 {[%clk 0:02:58.7]} 3... Bg7 {[%clk 0:03:00.4]}
4. Bg2 {[%clk 0:02:59.3]} 4... O-O {[%clk 0:03:01.2]} 5. Nc3 {[%clk 0:02:59.1]}
5... d6 {[%clk 0:03:01.7]} 6. Nf3 {[%clk 0:02:59.3]} 6... c6 {[%clk 0:03:02]} 7.
O-O {[%clk 0:02:58.7]} 7... Bf5 {[%clk 0:03:02.1]} 8. b3 {[%clk 0:02:44.5]} 8...
Ne4 {[%clk 0:03:00.1]} 9. Bb2 {[%clk 0:02:44.5]} 9... Nxc3 {[%clk 0:03:00]} 10.
Bxc3 {[%clk 0:02:45.4]} 10... Be4 {[%clk 0:03:00.8]} 1/2-1/2

[Event "Early-Titled-Tuesday-Blitz-September-12-2023"]
[Site "Chess.com"]
[Date "2023.09.12"]
[Round "11"]
[White "whiteglovethief"]
[Black "Gogolev_Artemy"]
[Result "1-0"]
[WhiteElo "2545"]
[BlackElo "2402"]
[TimeControl "180+1"]
[EndTime "10:01:14 PDT"]
[Termination "whiteglovethief won by resignation"]

1. d4 {[%clk 0:02:56.9]} 1... d5 {[%clk 0:03:00]} 2. c4 {[%clk 0:02:57.1]} 2...
c6 {[%clk 0:03:00.7]} 3. Nf3 {[%clk 0:02:57.3]} 3... Nf6 {[%clk 0:03:01.3]} 4.
e3 {[%clk 0:02:57.6]} 4... e6 {[%clk 0:02:46.9]} 5. Nbd2 {[%clk 0:02:58.5]} 5...
Nbd7 {[%clk 0:02:46]} 6. Bd3 {[%clk 0:02:59.4]} 6... b6 {[%clk 0:02:44]} 7. O-O
{[%clk 0:03:00.3]} 7... Bb7 {[%clk 0:02:44.5]} 8. e4 {[%clk 0:03:00.6]} 8...
dxe4 {[%clk 0:02:41.7]} 9. Nxe4 {[%clk 0:03:01.5]} 9... c5 {[%clk 0:02:42]} 10.
d5 {[%clk 0:03:00.5]} 10... Nxe4 {[%clk 0:02:29.1]} 11. Bxe4 {[%clk 0:02:58.8]}
11... Nf6 {[%clk 0:02:12.5]} 12. Bg5 {[%clk 0:02:51.5]} 12... Be7 {[%clk
0:02:03.1]} 13. Bxf6 {[%clk 0:02:45.7]} 13... Bxf6 {[%clk 0:02:04]} 14. Qe2
{[%clk 0:02:44.1]} 14... e5 {[%clk 0:01:48]} 15. d6 {[%clk 0:02:40.5]} 15...
Bxe4 {[%clk 0:01:44.7]} 16. Qxe4 {[%clk 0:02:41.4]} 16... O-O {[%clk 0:01:44.3]}
17. Rad1 {[%clk 0:02:40.9]} 17... Re8 {[%clk 0:01:39.7]} 18. d7 {[%clk
0:02:40.7]} 18... Re7 {[%clk 0:01:39.6]} 19. Qxa8 {[%clk 0:02:40.1]} 1-0

[Event "Early-Titled-Tuesday-Blitz-September-12-2023"]
[Site "Chess.com"]
[Date "2023.09.12"]
[Round "11"]
[White "Ready4abattle"]
[Black "ChessTankMan"]
[Result "0-1"]
[WhiteElo "2318"]
[BlackElo "2504"]
[TimeControl "180+1"]
[EndTime "10:01:37 PDT"]
[Termination "ChessTankMan won by resignation"]

1. e4 {[%clk 0:03:00.9]} 1... c5 {[%clk 0:02:59.7]} 2. Nf3 {[%clk 0:03:00.9]}
2... e6 {[%clk 0:02:59.1]} 3. d4 {[%clk 0:02:59.6]} 3... cxd4 {[%clk 0:02:59.7]}
4. Nxd4 {[%clk 0:03:00.4]} 4... a6 {[%clk 0:03:00.3]} 5. Bd3 {[%clk 0:02:57.5]}
5... Nf6 {[%clk 0:02:59.4]} 6. Nc3 {[%clk 0:02:57.1]} 6... Qc7 {[%clk 0:02:59]}
7. O-O {[%clk 0:02:56.9]} 7... Be7 {[%clk 0:02:58.9]} 8. Nb3 {[%clk 0:02:54.1]}
8... O-O {[%clk 0:02:56.3]} 9. f4 {[%clk 0:02:54.4]} 9... d6 {[%clk 0:02:56]}
10. Qf3 {[%clk 0:02:52.1]} 10... Nbd7 {[%clk 0:02:53.6]} 11. Be3 {[%clk
0:02:52.3]} 11... Rb8 {[%clk 0:02:45.8]} 12. Rae1 {[%clk 0:02:51]} 12... b5
{[%clk 0:02:44.8]} 13. g4 {[%clk 0:02:40.8]} 13... b4 {[%clk 0:02:44]} 14. Ne2
{[%clk 0:02:38.4]} 14... Nc5 {[%clk 0:02:37.2]} 15. g5 {[%clk 0:02:33.3]} 15...
Nfxe4 {[%clk 0:02:24.7]} 16. Bxe4 {[%clk 0:02:25.3]} 16... Nxe4 {[%clk
0:02:24.7]} 17. Qxe4 {[%clk 0:02:23.1]} 17... Bb7 {[%clk 0:02:25.2]} 18. Bb6
{[%clk 0:01:35.7]} 18... Qxb6+ {[%clk 0:02:20.9]} 19. Qd4 {[%clk 0:01:35.9]}
19... Qc6 {[%clk 0:02:20.7]} 0-1

[Event "Early-Titled-Tuesday-Blitz-September-12-2023"]
[Site "Chess.com"]
[Date "2023.09.12"]
[Round "11"]
[White "FeketeBarika"]
[Black "ural58"]
[Result "0-1"]
[WhiteElo "2388"]
[BlackElo "2537"]
[TimeControl "180+1"]
[EndTime "10:01:43 PDT"]
[Termination "ural58 won by resignation"]

1. Nf3 {[%clk 0:02:49.6]} 1... Nc6 {[%clk 0:02:45.6]} 2. c4 {[%clk 0:02:50.5]}
2... e5 {[%clk 0:02:44.8]} 3. Nc3 {[%clk 0:02:49.3]} 3... Bb4 {[%clk 0:02:43.4]}
4. Nd5 {[%clk 0:02:48.7]} 4... e4 {[%clk 0:02:43.3]} 5. Ng1 {[%clk 0:02:47.8]}
5... a5 {[%clk 0:02:40.7]} 6. a3 {[%clk 0:02:45]} 6... Be7 {[%clk 0:02:38.1]} 7.
Qc2 {[%clk 0:02:44]} 7... f5 {[%clk 0:02:28.7]} 8. d3 {[%clk 0:02:43.4]} 8...
Nf6 {[%clk 0:02:23.1]} 9. Nxf6+ {[%clk 0:02:41.6]} 9... Bxf6 {[%clk 0:02:23.2]}
10. dxe4 {[%clk 0:02:42.2]} 10... Nd4 {[%clk 0:02:22.5]} 11. Qd3 {[%clk
0:02:41.2]} 11... fxe4 {[%clk 0:02:18.6]} 12. Qxe4+ {[%clk 0:02:40.7]} 12... Qe7
{[%clk 0:02:18.4]} 13. Qxe7+ {[%clk 0:02:40.2]} 13... Bxe7 {[%clk 0:02:18.7]}
14. Rb1 {[%clk 0:02:35.7]} 14... d5 {[%clk 0:02:16.2]} 15. Be3 {[%clk
0:02:26.6]} 15... Nc2+ {[%clk 0:02:05.4]} 16. Kd2 {[%clk 0:02:25.8]} 16... Nxe3
{[%clk 0:02:05.1]} 17. fxe3 {[%clk 0:02:18.1]} 17... dxc4 {[%clk 0:02:04.5]} 18.
Nf3 {[%clk 0:02:15]} 18... Bf5 {[%clk 0:02:00.6]} 19. Nd4 {[%clk 0:02:13]} 19...
O-O-O {[%clk 0:02:00.2]} 20. Rc1 {[%clk 0:02:03.8]} 20... c5 {[%clk 0:01:54.2]}
21. Rxc4 {[%clk 0:02:03.9]} 21... Kb8 {[%clk 0:01:53.9]} 0-1

[Event "Early-Titled-Tuesday-Blitz-September-12-2023"]
[Site "Chess.com"]
[Date "2023.09.12"]
[Round "11"]
[White "Rutricks"]
[Black "PLAYER_2006_M"]
[Result "0-1"]
[WhiteElo "2684"]
[BlackElo "2877"]
[TimeControl "180+1"]
[EndTime "10:02:12 PDT"]
[Termination "PLAYER_2006_M won by resignation"]

1. e4 {[%clk 0:03:00.9]} 1... e5 {[%clk 0:02:59.7]} 2. Nf3 {[%clk 0:03:00.6]}
2... Nc6 {[%clk 0:03:00.4]} 3. Bc4 {[%clk 0:03:01.3]} 3... Nf6 {[%clk
0:03:00.3]} 4. d3 {[%clk 0:03:02]} 4... d5 {[%clk 0:03:00.9]} 5. exd5 {[%clk
0:03:01.8]} 5... Nxd5 {[%clk 0:03:01.8]} 6. O-O {[%clk 0:03:02.4]} 6... Be7
{[%clk 0:03:02.5]} 7. Re1 {[%clk 0:03:03.1]} 7... f6 {[%clk 0:03:03.1]} 8. d4
{[%clk 0:02:59.8]} 8... Nb6 {[%clk 0:03:03.3]} 9. Bb5 {[%clk 0:02:59.3]} 9...
O-O {[%clk 0:03:02.8]} 10. c3 {[%clk 0:02:49.6]} 10... Bg4 {[%clk 0:02:57.4]}
11. Qb3+ {[%clk 0:02:48.1]} 11... Kh8 {[%clk 0:02:55.4]} 12. Bxc6 {[%clk
0:02:32.3]} 12... bxc6 {[%clk 0:02:53.5]} 13. Nbd2 {[%clk 0:02:33]} 13... exd4
{[%clk 0:02:53.2]} 14. Nxd4 {[%clk 0:02:33.9]} 14... Re8 {[%clk 0:02:53.5]} 15.
Nxc6 {[%clk 0:02:28.9]} 15... Bc5 {[%clk 0:02:52]} 16. Rxe8+ {[%clk 0:00:48.7]}
16... Qxe8 {[%clk 0:02:49.6]} 17. Nd4 {[%clk 0:00:49.6]} 17... Bxd4 {[%clk
0:02:37.5]} 18. cxd4 {[%clk 0:00:49.6]} 18... Qe1+ {[%clk 0:02:37.9]} 19. Nf1
{[%clk 0:00:50.5]} 19... Be2 {[%clk 0:02:38.2]} 0-1

[Event "Early-Titled-Tuesday-Blitz-September-12-2023"]
[Site "Chess.com"]
[Date "2023.09.12"]
[Round "11"]
[White "The_Machine04"]
[Black "jguerramzllo"]
[Result "1-0"]
[WhiteElo "2711"]
[BlackElo "2833"]
[TimeControl "180+1"]
[EndTime "10:02:24 PDT"]
[Termination "The_Machine04 won by resignation"]

1. d4 {[%clk 0:03:00.9]} 1... d5 {[%clk 0:02:56.6]} 2. Nf3 {[%clk 0:02:59.5]}
2... e6 {[%clk 0:02:54.7]} 3. e3 {[%clk 0:02:54.2]} 3... Bd6 {[%clk 0:02:47.4]}
4. Nbd2 {[%clk 0:02:53.7]} 4... f5 {[%clk 0:02:47.2]} 5. Ne5 {[%clk 0:02:51.5]}
5... Nd7 {[%clk 0:02:45.3]} 6. Qh5+ {[%clk 0:02:47.9]} 6... g6 {[%clk
0:02:40.3]} 7. Nxg6 {[%clk 0:02:47.8]} 7... Ndf6 {[%clk 0:02:30.6]} 8. Qh3
{[%clk 0:02:45.9]} 8... hxg6 {[%clk 0:02:29.1]} 9. Qxh8 {[%clk 0:02:45.3]} 9...
Kf7 {[%clk 0:02:28.7]} 10. Nf3 {[%clk 0:02:42.9]} 10... Qf8 {[%clk 0:02:23.7]}
11. Ne5+ {[%clk 0:02:32.7]} 11... Bxe5 {[%clk 0:02:22.7]} 12. dxe5 {[%clk
0:02:33.6]} 12... Nh5 {[%clk 0:02:20]} 13. Qh7+ {[%clk 0:02:28.7]} 13... Ng7
{[%clk 0:02:19.3]} 14. h4 {[%clk 0:02:26.1]} 14... Qb4+ {[%clk 0:02:07.9]} 15.
c3 {[%clk 0:02:23.7]} 15... Qe4 {[%clk 0:02:08]} 16. h5 {[%clk 0:02:16.5]} 16...
gxh5 {[%clk 0:02:07.9]} 17. Rxh5 {[%clk 0:02:15.9]} 17... Qxe5 {[%clk 0:02:07]}
18. Rg5 {[%clk 0:02:15.4]} 18... Qf6 {[%clk 0:02:06.1]} 19. Rg3 {[%clk
0:02:11.6]} 19... e5 {[%clk 0:01:36.7]} 20. c4 {[%clk 0:01:58.5]} 20... f4
{[%clk 0:01:33.5]} 21. exf4 {[%clk 0:01:57.3]} 21... Bf5 {[%clk 0:01:33.7]} 22.
Rxg7+ {[%clk 0:01:44.8]} 1-0

[Event "Early-Titled-Tuesday-Blitz-September-12-2023"]
[Site "Chess.com"]
[Date "2023.09.12"]
[Round "11"]
[White "Apocalyps999"]
[Black "McCarthyStone"]
[Result "0-1"]
[WhiteElo "2289"]
[BlackElo "2458"]
[TimeControl "180+1"]
[EndTime "10:02:50 PDT"]
[Termination "McCarthyStone won by checkmate"]

1. e4 {[%clk 0:03:00.9]} 1... e5 {[%clk 0:03:00.7]} 2. Nf3 {[%clk 0:02:59.9]}
2... d6 {[%clk 0:03:01.2]} 3. d4 {[%clk 0:02:59.2]} 3... exd4 {[%clk 0:03:01.9]}
4. Nxd4 {[%clk 0:03:00]} 4... Nf6 {[%clk 0:03:02.4]} 5. Nc3 {[%clk 0:02:59.5]}
5... g6 {[%clk 0:03:02.9]} 6. Be3 {[%clk 0:02:58.4]} 6... Bg7 {[%clk 0:03:03.2]}
7. Qd2 {[%clk 0:02:58.3]} 7... O-O {[%clk 0:03:03.1]} 8. f3 {[%clk 0:02:58.7]}
8... Nc6 {[%clk 0:03:02]} 9. O-O-O {[%clk 0:02:58.4]} 9... Nxd4 {[%clk 0:03:02]}
10. Bxd4 {[%clk 0:02:58.4]} 10... Be6 {[%clk 0:03:02.8]} 11. h4 {[%clk
0:02:56.1]} 11... c5 {[%clk 0:03:02.9]} 12. Bxf6 {[%clk 0:02:55.5]} 12... Qxf6
{[%clk 0:03:02.2]} 13. Be2 {[%clk 0:02:53.8]} 13... b5 {[%clk 0:03:01.5]} 14. g4
{[%clk 0:02:47.6]} 14... b4 {[%clk 0:02:51.9]} 15. Na4 {[%clk 0:02:47.4]} 15...
Bd7 {[%clk 0:02:38.2]} 16. g5 {[%clk 0:02:39.1]} 16... Qe5 {[%clk 0:02:29.2]}
17. f4 {[%clk 0:02:38.5]} 17... Qxe4 {[%clk 0:02:23.3]} 18. b3 {[%clk
0:02:27.1]} 18... Rae8 {[%clk 0:01:53.7]} 19. Rde1 {[%clk 0:02:17.1]} 19... Bxa4
{[%clk 0:01:52.8]} 20. bxa4 {[%clk 0:02:16.6]} 20... Bc3 {[%clk 0:01:52.9]} 21.
Qd1 {[%clk 0:02:13.5]} 21... Qxf4+ {[%clk 0:01:41.4]} 22. Kb1 {[%clk 0:02:12.1]}
22... Bxe1 {[%clk 0:01:37.8]} 23. Rxe1 {[%clk 0:02:13]} 23... Qf2 {[%clk
0:01:31.6]} 24. h5 {[%clk 0:02:10.8]} 24... Re6 {[%clk 0:01:18]} 25. h6 {[%clk
0:02:08.2]} 25... Rfe8 {[%clk 0:01:15.6]} 26. Kb2 {[%clk 0:02:05.4]} 26... Rxe2
{[%clk 0:01:09.7]} 27. Kb3 {[%clk 0:02:06.3]} 27... Qxe1 {[%clk 0:01:05.5]} 28.
Qd5 {[%clk 0:02:07.2]} 28... Qc3# {[%clk 0:01:03.5]} 0-1

[Event "Early-Titled-Tuesday-Blitz-September-12-2023"]
[Site "Chess.com"]
[Date "2023.09.12"]
[Round "11"]
[White "ElenaPershina"]
[Black "pankajfm"]
[Result "1-0"]
[WhiteElo "2263"]
[BlackElo "2107"]
[TimeControl "180+1"]
[EndTime "10:03:11 PDT"]
[Termination "ElenaPershina won by resignation"]

1. e4 {[%clk 0:03:00.9]} 1... c5 {[%clk 0:02:59.5]} 2. Nf3 {[%clk 0:02:59.8]}
2... Nc6 {[%clk 0:02:59.9]} 3. Bb5 {[%clk 0:03:00.3]} 3... g6 {[%clk 0:02:58.9]}
4. O-O {[%clk 0:02:57]} 4... Bg7 {[%clk 0:02:59.3]} 5. c3 {[%clk 0:02:55.8]}
5... e6 {[%clk 0:02:55.8]} 6. d4 {[%clk 0:02:53]} 6... cxd4 {[%clk 0:02:52.8]}
7. cxd4 {[%clk 0:02:53.9]} 7... Nge7 {[%clk 0:02:53.2]} 8. Re1 {[%clk
0:02:50.1]} 8... O-O {[%clk 0:02:51.1]} 9. Nc3 {[%clk 0:02:49.4]} 9... d5 {[%clk
0:02:50.5]} 10. e5 {[%clk 0:02:41.9]} 10... a6 {[%clk 0:02:48.8]} 11. Bxc6
{[%clk 0:02:19.4]} 11... Nxc6 {[%clk 0:02:44.3]} 12. Bg5 {[%clk 0:02:17]} 12...
f6 {[%clk 0:02:34.9]} 13. exf6 {[%clk 0:02:15.9]} 13... Bxf6 {[%clk 0:02:35.8]}
14. Bh6 {[%clk 0:02:12.1]} 14... Re8 {[%clk 0:02:28.3]} 15. Qd2 {[%clk
0:02:04.1]} 15... Qc7 {[%clk 0:02:16]} 16. Rac1 {[%clk 0:01:58.3]} 16... Qb6
{[%clk 0:01:44.6]} 17. Nxd5 {[%clk 0:01:54.8]} 17... Qd8 {[%clk 0:01:20.2]} 18.
Nxf6+ {[%clk 0:01:51.5]} 18... Qxf6 {[%clk 0:01:21.1]} 19. Ne5 {[%clk
0:01:47.4]} 19... Nxe5 {[%clk 0:01:19.1]} 20. dxe5 {[%clk 0:01:47.4]} 20... Qf7
{[%clk 0:01:15.5]} 21. Qd6 {[%clk 0:01:37.4]} 21... Bd7 {[%clk 0:01:13.3]} 22.
Rc7 {[%clk 0:01:36.4]} 22... Rad8 {[%clk 0:01:12.4]} 23. Rd1 {[%clk 0:01:29.7]}
23... Qe7 {[%clk 0:01:12]} 24. Qxe7 {[%clk 0:01:25.9]} 24... Rxe7 {[%clk
0:01:12.9]} 25. Bg5 {[%clk 0:01:25.4]} 1-0

[Event "Early-Titled-Tuesday-Blitz-September-12-2023"]
[Site "Chess.com"]
[Date "2023.09.12"]
[Round "11"]
[White "arminmusovic"]
[Black "Srisshhhtea"]
[Result "1-0"]
[WhiteElo "2553"]
[BlackElo "2419"]
[TimeControl "180+1"]
[EndTime "10:03:13 PDT"]
[Termination "arminmusovic won by resignation"]

1. a3 {[%clk 0:02:55.1]} 1... e5 {[%clk 0:02:50.2]} 2. d4 {[%clk 0:02:55.2]}
2... exd4 {[%clk 0:02:49.3]} 3. Qxd4 {[%clk 0:02:56.1]} 3... Nc6 {[%clk
0:02:49.7]} 4. Qa4 {[%clk 0:02:56.5]} 4... Nf6 {[%clk 0:02:49.4]} 5. Nc3 {[%clk
0:02:56.2]} 5... d5 {[%clk 0:02:48.7]} 6. Bg5 {[%clk 0:02:56.5]} 6... Be7 {[%clk
0:02:48.3]} 7. O-O-O {[%clk 0:02:56.8]} 7... Be6 {[%clk 0:02:46.9]} 8. Nf3
{[%clk 0:02:56.2]} 8... O-O {[%clk 0:02:44.9]} 9. e4 {[%clk 0:02:56.6]} 9... Bg4
{[%clk 0:02:16.1]} 10. Bxf6 {[%clk 0:02:51.7]} 10... Bxf6 {[%clk 0:02:14.2]} 11.
Nxd5 {[%clk 0:02:52]} 11... Bxf3 {[%clk 0:02:13.3]} 12. gxf3 {[%clk 0:02:52.9]}
12... Ne5 {[%clk 0:02:11.8]} 13. f4 {[%clk 0:02:10.8]} 13... Ng4 {[%clk
0:02:08.4]} 14. e5 {[%clk 0:02:11.3]} 14... Bh4 {[%clk 0:02:06]} 15. Nf6+ {[%clk
0:02:04.6]} 15... Qxf6 {[%clk 0:02:04.3]} 16. exf6 {[%clk 0:02:04.5]} 16... Nxf2
{[%clk 0:02:05.2]} 17. fxg7 {[%clk 0:02:01.9]} 17... Rfe8 {[%clk 0:02:04.5]} 18.
Bd3 {[%clk 0:01:51.5]} 18... Nxh1 {[%clk 0:02:00.4]} 19. Rxh1 {[%clk 0:01:52.4]}
19... Re3 {[%clk 0:01:49.8]} 20. Kb1 {[%clk 0:01:45.6]} 20... Rae8 {[%clk
0:01:49.4]} 21. Qxa7 {[%clk 0:01:44.2]} 21... Bf6 {[%clk 0:01:36]} 22. Rg1
{[%clk 0:01:37.3]} 22... c5 {[%clk 0:01:27.1]} 23. Qxc5 {[%clk 0:01:22.9]} 23...
h6 {[%clk 0:01:21]} 24. Ka2 {[%clk 0:01:20.9]} 1-0

[Event "Early-Titled-Tuesday-Blitz-September-12-2023"]
[Site "Chess.com"]
[Date "2023.09.12"]
[Round "11"]
[White "Kapitan_Bayan"]
[Black "Nekoo04"]
[Result "0-1"]
[WhiteElo "2189"]
[BlackElo "2267"]
[TimeControl "180+1"]
[EndTime "10:03:55 PDT"]
[Termination "Nekoo04 won by resignation"]

1. e4 {[%clk 0:02:54]} 1... c5 {[%clk 0:02:49.1]} 2. Nf3 {[%clk 0:02:52]} 2...
d6 {[%clk 0:02:48.8]} 3. d4 {[%clk 0:02:51.4]} 3... cxd4 {[%clk 0:02:49.7]} 4.
Nxd4 {[%clk 0:02:51.9]} 4... Nf6 {[%clk 0:02:50.4]} 5. Nc3 {[%clk 0:02:52.1]}
5... g6 {[%clk 0:02:50.9]} 6. Be3 {[%clk 0:02:49]} 6... Bg7 {[%clk 0:02:51.1]}
7. f3 {[%clk 0:02:42.1]} 7... Nc6 {[%clk 0:02:48.6]} 8. Qd2 {[%clk 0:02:39]}
8... O-O {[%clk 0:02:46.9]} 9. Kd1 {[%clk 0:02:39.5]} 9... d5 {[%clk 0:02:42.5]}
10. exd5 {[%clk 0:02:40.4]} 10... Nxd5 {[%clk 0:02:39.7]} 11. Nxc6 {[%clk
0:02:39.5]} 11... Nxc3+ {[%clk 0:02:29]} 12. bxc3 {[%clk 0:02:35]} 12... bxc6
{[%clk 0:02:29.4]} 13. Bd3 {[%clk 0:02:24.7]} 13... Qd6 {[%clk 0:02:16.6]} 14.
Ke2 {[%clk 0:02:12.8]} 14... Rd8 {[%clk 0:02:07.9]} 15. Rab1 {[%clk 0:02:08.7]}
15... Be6 {[%clk 0:02:00.7]} 16. Rb2 {[%clk 0:02:00.5]} 16... Qa3 {[%clk
0:01:55]} 17. Rb7 {[%clk 0:01:32.7]} 17... Bxc3 {[%clk 0:01:49.1]} 18. Qc1
{[%clk 0:01:32.3]} 18... Qxa2 {[%clk 0:01:40]} 19. Rxe7 {[%clk 0:01:26.1]} 19...
Bf6 {[%clk 0:01:15.8]} 20. Rb7 {[%clk 0:01:19.4]} 20... Rxd3 {[%clk 0:01:05.3]}
21. Kxd3 {[%clk 0:01:17.9]} 21... Qc4+ {[%clk 0:01:03.6]} 22. Kd2 {[%clk
0:01:17.2]} 22... Bc3+ {[%clk 0:01:03.9]} 23. Kd1 {[%clk 0:01:16.3]} 23... Rd8+
{[%clk 0:01:04.1]} 24. Bd2 {[%clk 0:01:11.6]} 24... Qf4 {[%clk 0:00:52.5]} 0-1